bitfinex-derivatives/quotes_SOLF0:USTF0_20260315
["timestamp","ask_amount","ask_price","bid_price","bid_amount"]
[1773595054485,4.02803989,87.735,87.701,4.04437974]
[1773595059890,4.02803989,87.731,87.701,4.04437974]
[1773595073290,10.255,87.74,87.701,4.04437974]
[1773595075201,4.01973051,87.736,87.701,4.04437974]
[1773595076006,4.01973051,87.732,87.701,4.04437974]
[1773595076201,4.01973051,87.732,87.691,4.05498141]
[1773595077506,10.256,87.729,87.691,4.05498141]
[1773595077706,4.01973051,87.728,87.691,4.05498141]
[1773595078603,10.26,87.696,87.652,4.05498141]
[1773595078802,29.35932014,87.739,87.652,4.05498141]
[1773595078803,4.01973051,87.695,87.652,4.05498141]
[1773595079308,4.01973051,87.69,87.652,4.05498141]
[1773595081817,4.01973051,87.689,87.652,4.05498141]
[1773595083216,4.01973051,87.706,87.652,4.05498141]
[1773595084111,3.11850719,87.71,87.652,4.05498141]
[1773595084112,14.27873051,87.704,87.652,4.05498141]
[1773595084313,4.01973051,87.703,87.652,4.05498141]
[1773595088512,3.11850719,87.7,87.652,4.05498141]
[1773595089824,7.1382377,87.7,87.652,4.05498141]
[1773595091124,4.01973051,87.718,87.671,4.05498141]
[1773595091513,4.01973051,87.718,87.681,4.05498141]
[1773595103422,3.73030791,87.735,87.691,3.6767212]
[1773595110429,10.255,87.737,87.701,3.6767212]
[1773595113030,3.73030791,87.736,87.701,3.6767212]
[1773595115833,3.73030791,87.758,87.711,3.6767212]
[1773595116739,10.253,87.753,87.711,3.6767212]
[1773595117439,3.73030791,87.752,87.711,3.6767212]
[1773595124744,3.73030791,87.75,87.711,3.6767212]
[1773595126641,3.73030791,87.747,87.711,3.6767212]
[1773595127242,6.847814,87.76,87.711,3.6767212]
[1773595127542,6.847814,87.76,87.721,3.6767212]
[1773595127543,10.253,87.756,87.721,3.6767212]
[1773595130348,3.73030791,87.76,87.721,3.6767212]
[1773595142254,10.252,87.764,87.721,3.6767212]
[1773595142455,4.01848406,87.77,87.722,3.78500348]
[1773595143559,4.01848406,87.77,87.726,3.78500348]
[1773595145963,4.01848406,87.77,87.728,3.78500348]
[1773595148466,4.01848406,87.77,87.733,3.78500348]
[1773595154870,10.25,87.781,87.71,35.88]
[1773595154871,14.26848406,87.781,87.736,3.78500348]
[1773595155072,4.01848406,87.78,87.741,3.78500348]
[1773595158470,10.249,87.789,87.741,3.78500348]
[1773595158671,4.01848406,87.793,87.751,3.78500348]
[1773595159366,4.01848406,87.809,87.755,3.78500348]
[1773595159568,4.01848406,87.809,87.761,3.78500348]
[1773595160671,4.01848406,87.805,87.761,3.78500348]
[1773595160972,4.01848406,87.799,87.741,3.78500348]
[1773595161372,4.01848406,87.799,87.757,10.252]
[1773595163676,4.01848406,87.799,87.757,13.92760565]
[1773595164369,4.01848406,87.799,87.758,3.67560565]
[1773595165273,4.01848406,87.799,87.75,3.1127167]
[1773595165274,4.01848406,87.799,87.763,3.67560565]
[1773595168373,4.01848406,87.799,87.752,13.92860565]
[1773595168579,3.73392548,87.789,87.752,3.67560565]
[1773595170775,3.73392548,87.789,87.74,3.1127167]
[1773595170776,3.73392548,87.789,87.753,3.67560565]
[1773595182387,3.73392548,87.789,87.755,3.67560565]
[1773595183194,3.73392548,87.807,87.757,3.67560565]
[1773595183887,3.73392548,87.807,87.765,3.67560565]
[1773595185592,3.73392548,87.807,87.77,3.67560565]
[1773595186693,3.73392548,87.807,87.772,3.67560565]
[1773595190497,3.73392548,87.807,87.774,3.67560565]
[1773595191600,3.73392548,87.807,87.751,3.67560565]
[1773595191997,3.73392548,87.807,87.761,3.68989693]
[1773595192601,3.73392548,87.807,87.767,3.68989693]
[1773595194100,3.73392548,87.807,87.77,3.68989693]
[1773595197809,3.73392548,87.807,87.773,3.68989693]
[1773595199611,3.73392548,87.807,87.775,10.25]
[1773595204016,3.73392548,87.807,87.776,3.68989693]
[1773595205117,4.05396775,87.817,87.78,3.1127167]
[1773595205321,4.05396775,87.817,87.781,3.68989693]
[1773595206513,4.05396775,87.817,87.783,3.68989693]
[1773595211825,4.05396775,87.839,87.791,3.68989693]
[1773595213724,4.05396775,87.839,87.794,3.68989693]
[1773595216226,4.05396775,87.839,87.775,35.86]
[1773595216227,4.05396775,87.862,87.811,3.68989693]
[1773595216730,3.1127167,87.86,87.811,3.68989693]
[1773595216923,4.05396775,87.859,87.811,3.68989693]
[1773595217527,4.05396775,87.859,87.812,3.68989693]
[1773595217729,4.05396775,87.819,87.765,3.68989693]
[1773595218031,31.10949146,87.88,87.765,3.68989693]
[1773595218032,4.05396775,87.809,87.765,3.68989693]
[1773595219630,4.05396775,87.809,87.768,3.68989693]
[1773595221529,4.05396775,87.809,87.771,10.251]
[1773595221834,4.05396775,87.809,87.76,3.1127167]
[1773595221835,4.05396775,87.809,87.772,3.68989693]
[1773595222627,4.05396775,87.809,87.774,3.87402973]
[1773595225334,3.86812004,87.829,87.781,3.87402973]
[1773595226429,3.86812004,87.829,87.793,10.248]
[1773595227238,3.11196476,87.82,87.78,3.87402973]
[1773595227432,3.86812004,87.809,87.761,3.87402973]
[1773595228240,3.86812004,87.799,87.761,3.87402973]
[1773595228940,3.11196476,87.8,87.75,3.11196476]
[1773595228941,3.86812004,87.797,87.75,3.87402973]
[1773595229134,10.63249146,87.846,87.75,3.87402973]
[1773595229135,3.86812004,87.789,87.75,3.87402973]
[1773595242762,3.86812004,87.789,87.751,3.87402973]
[1773595242966,10.248,87.798,87.75,3.11196476]
[1773595242967,3.86812004,87.797,87.754,3.87402973]
[1773595244566,3.86812004,87.797,87.756,3.87402973]
[1773595245666,10.248,87.798,87.756,3.87402973]
[1773595246060,14.11612004,87.798,87.756,3.87402973]
[1773595246265,3.86812004,87.797,87.756,3.87402973]
[1773595248063,3.86812004,87.807,87.771,3.87402973]
[1773595248263,3.86812004,87.829,87.771,3.87402973]
[1773595248568,3.86812004,87.829,87.781,3.87402973]
[1773595249070,10.63900469,87.862,87.714,35.86]
[1773595249071,3.86812004,87.841,87.8,3.11196476]
[1773595249270,3.86812004,87.841,87.801,3.87402973]
[1773595251975,3.86812004,87.841,87.803,3.77539697]
[1773595253673,3.86812004,87.841,87.806,3.77539697]
[1773595261377,3.91604824,87.839,87.791,3.77539697]
[1773595262578,3.91604824,87.837,87.791,3.77539697]
[1773595263478,3.91604824,87.835,87.791,3.77539697]
[1773595269985,3.91604824,87.829,87.77,3.11196476]
[1773595270189,3.91604824,87.819,87.769,3.77539697]
[1773595271589,3.91604824,87.817,87.769,3.77539697]
[1773595278389,3.91604824,87.813,87.769,3.77539697]
[1773595279582,112.8238976,88.057,87.76,3.11196476]
[1773595279583,3.11196476,87.81,87.76,3.11196476]
[1773595279785,3.91604824,87.809,87.758,3.77539697]
[1773595281689,3.91604824,87.805,87.758,3.77539697]
[1773595282592,3.808026,87.801,87.758,3.77539697]
[1773595283694,3.11196476,87.8,87.758,3.77539697]
[1773595283990,3.808026,87.799,87.758,3.77539697]
[1773595289391,3.808026,87.794,87.743,3.87118153]
[1773595290494,10.249,87.791,87.746,3.87118153]
[1773595291701,14.057026,87.791,87.746,3.87118153]
[1773595292006,3.808026,87.789,87.746,3.87118153]
[1773595294306,3.808026,87.789,87.749,3.87118153]
[1773595294902,3.808026,87.789,87.751,3.87118153]
[1773595295509,3.808026,87.789,87.752,10.253]
[1773595295708,3.808026,87.789,87.753,3.87118153]
[1773595298706,3.808026,87.789,87.743,10.254]
[1773595298915,3.808026,87.789,87.745,3.87118153]
[1773595299615,3.808026,87.789,87.747,3.87118153]
[1773595300308,3.808026,87.789,87.75,3.11317112]
[1773595300512,3.808026,87.789,87.751,3.87118153]
[1773595309116,3.808026,87.789,87.753,3.87118153]
[1773595310313,17.35142477,87.824,87.717,35.86]
[1773595310314,3.808026,87.798,87.757,3.87118153]
[1773595310508,3.808026,87.798,87.761,3.87118153]
[1773595311617,3.808026,87.798,87.762,3.87118153]
[1773595313014,13.93643947,87.813,87.765,10.252]
[1773595313218,3.69043947,87.812,87.766,3.9631845]
[1773595314613,3.69043947,87.808,87.766,3.9631845]
[1773595322726,3.69043947,87.806,87.766,3.9631845]
[1773595325030,3.69043947,87.799,87.766,3.9631845]
[1773595331226,10.248,87.798,87.753,3.9631845]
[1773595331431,3.69043947,87.789,87.741,3.9631845]
[1773595332531,3.69043947,87.787,87.741,3.9631845]
[1773595333634,3.69043947,87.784,87.741,3.9631845]
[1773595338639,3.69043947,87.799,87.751,3.9631845]
[1773595341039,3.69043947,87.799,87.761,3.9631845]
[1773595343631,3.97437272,87.795,87.76,3.11317112]
[1773595343835,3.97437272,87.795,87.751,3.99417657]
[1773595344632,3.97437272,87.793,87.751,3.99417657]
[1773595346444,3.97437272,87.782,87.751,3.99417657]
[1773595346646,3.97437272,87.782,87.741,3.99417657]
[1773595352349,3.97437272,87.782,87.743,3.99417657]
[1773595358755,3.97437272,87.797,87.751,3.99417657]
[1773595359668,10.247,87.806,87.761,3.99417657]
[1773595360059,10.247,87.806,87.771,3.99417657]
[1773595360260,10.246,87.815,87.771,3.99417657]
[1773595360859,3.97437272,87.814,87.771,3.99417657]
[1773595381974,3.75989063,87.821,87.771,3.99417657]
[1773595383679,3.75989063,87.821,87.773,3.82905537]
[1773595386283,10.245,87.82,87.773,3.82905537]
[1773595386483,3.75989063,87.819,87.773,3.82905537]
[1773595388278,3.75989063,87.816,87.773,3.82905537]
[1773595388475,3.75989063,87.816,87.765,3.82905537]
[1773595388681,10.65508371,87.849,87.765,3.82905537]
[1773595388682,3.75989063,87.809,87.765,3.82905537]
[1773595389684,3.75989063,87.806,87.765,3.82905537]
[1773595399991,10.246,87.814,87.765,3.82905537]
[1773595400192,3.75989063,87.816,87.781,3.82905537]
[1773595402999,3.7445828,87.826,87.782,3.71645609]
[1773595404699,3.7445828,87.826,87.78,3.11369948]
[1773595404700,3.7445828,87.826,87.786,3.71645609]
[1773595408004,8.42637765,87.836,87.791,3.71645609]
[1773595408197,3.7445828,87.838,87.791,3.71645609]
[1773595408804,3.7445828,87.836,87.791,3.71645609]
[1773595412709,3.7445828,87.836,87.794,3.71645609]
[1773595416309,3.7445828,87.836,87.75,28.3193933]
[1773595416310,3.7445828,87.846,87.801,3.71645609]
[1773595416512,3.7445828,87.859,87.811,3.71645609]
[1773595417609,3.7445828,87.855,87.811,3.71645609]
[1773595419913,13.9855828,87.854,87.811,3.71645609]
[1773595420419,3.7445828,87.853,87.811,3.71645609]
[1773595423316,3.7445828,87.853,87.813,3.71645609]
[1773595435137,3.7445828,87.853,87.815,10.246]
[1773595435439,3.7445828,87.853,87.815,13.92262322]
[1773595435737,3.7445828,87.853,87.816,3.67662322]
[1773595444246,3.7445828,87.853,87.819,3.67662322]
[1773595449349,4.00831217,87.862,87.822,3.67662322]
[1773595450748,4.00831217,87.862,87.827,3.67662322]
[1773595452147,4.00831217,87.862,87.828,10.244]
[1773595453352,4.00831217,87.876,87.829,3.67662322]
[1773595453550,4.00831217,87.882,87.834,3.67662322]
[1773595453754,4.00831217,87.869,87.824,3.67662322]
[1773595454654,4.00831217,87.869,87.824,13.92162322]
[1773595456554,4.00831217,87.869,87.826,10.244]
[1773595456955,4.00831217,87.869,87.826,13.92062322]
[1773595457148,4.00831217,87.869,87.831,10.244]
[1773595460056,4.00831217,87.869,87.832,3.67662322]
[1773595461461,4.00831217,87.869,87.786,28.3193933]
[1773595461462,4.00831217,87.859,87.81,3.67662322]
[1773595462264,3.91382578,87.857,87.812,3.8038729]
[1773595463765,3.91382578,87.857,87.821,14.0488729]
[1773595465766,10.24,87.866,87.822,3.8038729]
[1773595465965,14.15382578,87.866,87.822,3.8038729]
[1773595466669,3.91382578,87.865,87.822,3.8038729]
[1773595468259,3.91382578,87.863,87.822,3.8038729]
[1773595468662,3.11029095,87.86,87.812,14.0498729]
[1773595468959,3.91382578,87.859,87.812,14.0498729]
[1773595469558,3.91382578,87.856,87.812,14.0498729]
[1773595470268,3.91382578,87.856,87.813,3.8038729]
[1773595483776,3.91382578,87.854,87.812,10.246]
[1773595483972,3.91382578,87.849,87.798,21.20882253]
[1773595484175,3.91382578,87.849,87.794,3.8038729]
[1773595485776,3.91382578,87.843,87.795,3.8038729]
[1773595486680,3.91382578,87.843,87.8,3.8038729]
[1773595490883,3.91382578,87.843,87.804,3.8038729]
[1773595491085,3.91382578,87.843,87.784,35.84]
[1773595491086,3.91382578,87.853,87.811,3.8038729]
[1773595495187,3.91382578,87.853,87.812,4.0536239]
[1773595495686,3.98966916,87.876,87.833,4.0536239]
[1773595495891,3.98966916,87.876,87.821,4.0536239]
[1773595496090,3.98966916,87.869,87.821,4.0536239]
[1773595497690,3.98966916,87.866,87.821,4.0536239]
[1773595502185,3.98966916,87.866,87.801,35.84]
[1773595502186,3.98966916,87.849,87.797,21.20882253]
[1773595502392,3.98966916,87.849,87.796,4.0536239]
[1773595502694,3.98966916,87.849,87.798,4.0536239]
[1773595503795,3.98966916,87.849,87.8,7.16230265]
[1773595504094,3.98966916,87.849,87.801,4.0536239]
[1773595504495,10.242,87.848,87.801,4.0536239]
[1773595504692,3.98966916,87.847,87.801,4.0536239]
[1773595514404,10.241,87.856,87.811,4.0536239]
[1773595514805,8.35773374,87.882,87.811,4.0536239]
[1773595514806,10.24,87.867,87.821,4.0536239]
[1773595515210,3.98966916,87.866,87.821,4.0536239]
[1773595524219,3.98966916,87.866,87.823,3.76440595]
[1773595524912,3.96170952,87.864,87.823,3.76440595]
[1773595526616,3.96170952,87.862,87.823,3.76440595]
[1773595559046,3.96170952,87.862,87.826,3.95837901]
[1773595560743,3.96170952,87.862,87.829,3.95837901]
[1773595561442,3.84201969,87.874,87.831,3.95837901]
[1773595561740,3.84201969,87.859,87.809,3.95837901]
[1773595562143,3.84201969,87.854,87.81,14.20437901]
[1773595562543,3.84201969,87.854,87.811,3.95837901]
[1773595567152,3.84201969,87.854,87.814,3.95837901]
[1773595567351,3.84201969,87.869,87.831,3.95837901]
[1773595568349,14.08001969,87.879,87.833,3.95837901]
[1773595568950,3.84201969,87.878,87.833,3.95837901]
[1773595569653,10.237,87.888,87.841,3.95837901]
[1773595569853,3.84201969,87.887,87.841,3.95837901]
[1773595570054,3.84201969,87.898,87.851,3.95837901]
[1773595571547,3.84201969,87.893,87.851,3.95837901]
[1773595593673,3.91673702,87.91,87.863,3.69242631]
[1773595593879,3.91673702,87.91,87.871,3.69242631]
[1773595601174,3.91673702,87.909,87.854,3.69242631]
[1773595602681,3.91673702,87.908,87.854,3.69242631]
[1773595602979,3.91673702,87.899,87.845,10.242]
[1773595603482,3.91673702,87.899,87.845,13.93442631]
[1773595603881,3.91673702,87.889,87.835,10.243]
[1773595604078,3.91673702,87.889,87.835,13.93542631]
[1773595604282,3.91673702,87.889,87.836,3.69242631]
[1773595605587,3.91673702,87.887,87.836,3.69242631]
[1773595606589,3.91673702,87.882,87.836,3.69242631]
[1773595608390,3.91673702,87.882,87.84,3.10650478]
[1773595608583,3.91673702,87.882,87.841,3.69242631]
[1773595615501,10.237,87.891,87.851,3.70610484]
[1773595616001,13.96213948,87.891,87.851,3.70610484]
[1773595616201,3.72513948,87.89,87.851,3.70610484]
[1773595621599,3.72513948,87.902,87.853,3.70610484]
[1773595621799,3.72513948,87.902,87.861,3.70610484]
[1773595626498,3.72513948,87.902,87.864,3.70610484]
[1773595627606,3.72513948,87.902,87.867,3.70610484]
[1773595630411,3.72513948,87.899,87.845,3.70610484]
[1773595631510,3.72513948,87.898,87.848,10.242]
[1773595632607,3.72513948,87.896,87.848,10.242]
[1773595633209,3.72513948,87.896,87.848,13.94810484]
[1773595634212,3.72513948,87.896,87.849,3.70610484]
[1773595634909,3.72513948,87.896,87.851,3.70610484]
[1773595641119,3.72513948,87.894,87.851,3.70610484]
[1773595651435,3.72513948,87.894,87.838,35.82]
[1773595651436,3.10650478,87.89,87.839,3.99521314]
[1773595651734,4.02750863,87.889,87.839,3.99521314]
[1773595652129,3.10650478,87.89,87.839,3.99521314]
[1773595652130,4.02750863,87.877,87.839,3.99521314]
[1773595655428,4.02750863,87.903,87.851,3.99521314]
[1773595655634,4.02750863,87.901,87.851,3.99521314]
[1773595656029,4.02750863,87.895,87.851,3.99521314]
[1773595666637,4.02750863,87.89,87.851,3.99521314]
[1773595666839,4.02750863,87.89,87.841,3.99521314]
[1773595667043,4.02750863,87.889,87.841,3.99521314]
[1773595667644,4.02750863,87.888,87.841,3.99521314]
[1773595668641,4.02750863,87.885,87.841,3.99521314]
[1773595674449,4.00910923,87.879,87.839,35.84]
[1773595675644,4.00910923,87.872,87.831,3.79278931]
[1773595676648,4.00910923,87.869,87.831,3.79278931]
[1773595681753,4.00910923,87.866,87.831,3.79278931]
[1773595683253,3.10737954,87.88,87.831,3.79278931]
[1773595683254,4.00910923,87.864,87.831,3.79278931]
[1773595683455,4.00910923,87.864,87.821,3.79278931]
[1773595684558,4.00910923,87.861,87.821,3.79278931]
[1773595690464,4.00910923,87.859,87.818,35.84]
[1773595691761,4.00910923,87.857,87.818,35.84]
[1773595696666,4.00910923,87.855,87.818,35.84]
[1773595698973,4.00910923,87.855,87.818,39.63278931]
[1773595704583,4.05693881,87.849,87.818,39.63278931]
[1773595704782,4.05693881,87.849,87.818,3.79278931]
[1773595705585,14.29893881,87.848,87.818,3.79278931]
[1773595706684,4.05693881,87.847,87.818,3.79278931]
[1773595708684,10.242,87.846,87.818,3.79278931]
[1773595708885,4.05693881,87.845,87.801,3.70893526]
[1773595709081,4.05693881,87.839,87.801,3.70893526]
[1773595710589,10.244,87.83,87.801,3.70893526]
[1773595724198,4.05693881,87.836,87.801,3.70893526]
[1773595731905,3.7440428,87.834,87.784,4.02103959]
[1773595732504,3.99268731,87.829,87.784,4.02103959]
[1773595733604,3.99268731,87.822,87.784,4.02103959]
[1773595755214,3.99268731,87.835,87.791,4.02103959]
[1773595768736,10.244,87.834,87.791,4.02103959]
[1773595768935,3.98318353,87.833,87.791,4.02103959]
[1773595772335,3.98318353,87.831,87.791,4.02103959]
[1773595781139,3.98318353,87.829,87.791,4.02103959]
[1773595782642,3.98318353,87.826,87.791,4.02103959]
[1773595784444,3.98318353,87.824,87.772,3.9510799]
[1773595785642,3.98318353,87.817,87.772,3.9510799]
[1773595787537,3.98318353,87.814,87.772,3.9510799]
[1773595790346,3.98318353,87.809,87.772,3.9510799]
[1773595791847,3.6754231,87.807,87.772,3.9510799]
[1773595805458,3.6754231,87.805,87.772,3.9510799]
[1773595818571,3.6754231,87.826,87.781,3.8332258]
[1773595818766,3.6754231,87.826,87.791,3.8332258]
[1773595819070,3.6754231,87.826,87.737,28.3193933]
[1773595819071,10.244,87.83,87.8,6.94378932]
[1773595820863,13.9194231,87.83,87.8,6.94378932]
[1773595822168,13.9194231,87.83,87.8,3.8332258]
[1773595836193,8.78266714,87.837,87.8,3.8332258]
[1773595836390,10.243,87.838,87.801,3.98851622]
[1773595843395,13.93622276,87.838,87.801,3.98851622]
[1773595845091,3.69322276,87.838,87.801,3.98851622]
[1773595845289,13.93522276,87.847,87.801,3.98851622]
[1773595845593,3.69322276,87.846,87.801,3.98851622]
[1773595854008,3.69322276,87.846,87.803,3.75859594]
[1773595855907,3.69322276,87.846,87.808,3.75859594]
[1773595856106,4.00881429,87.856,87.811,3.75859594]
[1773595857604,4.00881429,87.856,87.801,3.75859594]
[1773595857799,4.00881429,87.849,87.801,3.75859594]
[1773595858606,4.00881429,87.844,87.801,3.75859594]
[1773595875116,4.00881429,87.842,87.797,10.248]
[1773595875311,4.00881429,87.842,87.765,28.3193933]
[1773595875312,4.00881429,87.842,87.788,10.249]
[1773595875515,4.00881429,87.842,87.779,24.96741847]
[1773595875516,35.86,87.852,87.779,3.75859594]
[1773595875517,4.00881429,87.839,87.779,3.75859594]
[1773595876520,4.00881429,87.829,87.781,3.75859594]
[1773595881021,4.00881429,87.829,87.791,3.75859594]
[1773595882813,4.00881429,87.829,87.762,35.86]
[1773595882814,3.6848339,87.839,87.801,3.82789506]
[1773595884225,3.6848339,87.839,87.79,3.10981939]
[1773595884425,3.6848339,87.839,87.79,6.93771445]
[1773595884723,3.6848339,87.839,87.791,3.82789506]
[1773595885618,3.6848339,87.836,87.791,3.82789506]
[1773595887926,3.6848339,87.833,87.791,3.82789506]
[1773595891530,3.6848339,87.833,87.792,3.82789506]
[1773595892523,3.6848339,87.833,87.794,10.248]
[1773595892727,3.6848339,87.833,87.795,3.82789506]
[1773595907028,3.6848339,87.833,87.798,3.82789506]
[1773595909439,3.6848339,87.843,87.801,3.82789506]
[1773595910533,3.6848339,87.843,87.802,3.82789506]
[1773595911439,3.6848339,87.854,87.811,3.82789506]
[1773595913531,3.6848339,87.854,87.813,3.8611775]
[1773595921043,3.9777538,87.844,87.795,3.8611775]
[1773595922847,3.9777538,87.844,87.797,3.8611775]
[1773595923744,3.9777538,87.844,87.798,10.248]
[1773595924045,3.9777538,87.844,87.799,3.8611775]
[1773595930848,2.81316105,87.844,87.799,3.8611775]
[1773595931446,10.243,87.843,87.799,3.8611775]
[1773595932950,3.9777538,87.839,87.799,3.8611775]
[1773595936653,3.9777538,87.837,87.799,3.8611775]
[1773595946264,35.86,87.869,87.79,3.9626703]
[1773595946265,3.70114811,87.833,87.79,3.9626703]
[1773595948866,3.70114811,87.831,87.79,3.9626703]
[1773595954372,3.70114811,87.828,87.783,35.86]
[1773595954568,3.70114811,87.828,87.769,21.20882253]
[1773595954569,3.70114811,87.819,87.763,3.9626703]
[1773595954776,3.70114811,87.799,87.763,3.9626703]
[1773595965881,10.248,87.797,87.763,3.9626703]
[1773595966781,13.94914811,87.797,87.763,3.9626703]
[1773595968574,3.70114811,87.796,87.763,3.9626703]
[1773595972478,3.70114811,87.796,87.747,3.7751462]
[1773595972680,3.98994321,87.786,87.747,3.7751462]
[1773595972879,3.98994321,87.779,87.731,3.7751462]
[1773595973085,3.98994321,87.769,87.731,3.7751462]
[1773595976889,7.10354621,87.78,87.731,3.7751462]
[1773595977191,3.98994321,87.792,87.741,3.7751462]
[1773595977387,3.98994321,87.792,87.742,3.7751462]
[1773595978598,3.98994321,87.789,87.742,3.7751462]
[1773595979398,3.98994321,87.789,87.745,3.7751462]
[1773595990302,3.98994321,87.787,87.745,3.7751462]
[1773595995901,3.98994321,87.785,87.745,3.7751462]
[1773595998505,10.249,87.786,87.745,3.7751462]
[1773595999403,3.98994321,87.782,87.745,3.7751462]
[1773596013120,35.86,87.815,87.712,35.86]
[1773596013121,8.79110933,87.798,87.748,4.01176054]
[1773596013322,3.683343,87.804,87.751,4.01176054]
[1773596013622,3.683343,87.802,87.751,4.01176054]
[1773596014623,3.683343,87.802,87.753,4.01176054]
[1773596015629,13.930343,87.801,87.753,4.01176054]
[1773596017328,3.683343,87.8,87.753,4.01176054]
[1773596021226,3.683343,87.798,87.753,4.01176054]
[1773596027444,10.6457415,87.824,87.753,4.01176054]
[1773596027445,3.683343,87.794,87.753,4.01176054]
[1773596028742,3.683343,87.789,87.753,4.01176054]
[1773596034440,10.248,87.798,87.753,4.01176054]
[1773596036250,13.99332483,87.798,87.753,4.01176054]
[1773596036950,3.74532483,87.797,87.753,4.01176054]
[1773596038447,10.247,87.806,87.753,4.01176054]
[1773596038653,3.74532483,87.807,87.761,4.03105833]
[1773596039652,3.74532483,87.805,87.761,4.03105833]
[1773596040556,3.74532483,87.796,87.761,4.03105833]
[1773596047660,3.74532483,87.796,87.762,4.03105833]
[1773596048459,3.74532483,87.806,87.762,4.03105833]
[1773596056462,3.74532483,87.817,87.771,4.03105833]
[1773596057364,3.74532483,87.817,87.77,3.11360569]
[1773596057365,3.74532483,87.817,87.781,4.03105833]
[1773596061369,3.74532483,87.817,87.763,35.86]
[1773596061567,20.483,87.854,87.763,35.86]
[1773596061568,3.74532483,87.809,87.763,35.86]
[1773596062368,3.97056037,87.797,87.763,35.86]
[1773596066771,3.97056037,87.789,87.75,3.81567148]
[1773596067976,3.97056037,87.787,87.74,3.81567148]
[1773596069677,3.97056037,87.785,87.74,3.81567148]
[1773596076389,3.97056037,87.779,87.733,35.86]
[1773596076686,3.97056037,87.779,87.733,39.67567148]
[1773596077287,3.97056037,87.779,87.734,3.81567148]
[1773596080284,3.97056037,87.772,87.734,3.81567148]
[1773596097002,3.97056037,87.772,87.74,3.11510748]
[1773596097301,3.97056037,87.772,87.741,4.0686331]
[1773596102903,14.26294066,87.781,87.741,4.0686331]
[1773596103705,4.01294066,87.78,87.741,4.0686331]
[1773596115717,4.01294066,87.788,87.741,4.0686331]
[1773596116616,4.01294066,87.788,87.745,4.0686331]
[1773596120019,4.01294066,87.809,87.761,4.0686331]
[1773596120322,4.01294066,87.807,87.761,4.0686331]
[1773596120623,4.01294066,87.805,87.761,4.0686331]
[1773596120820,3.11510748,87.82,87.761,4.0686331]
[1773596120821,4.01294066,87.803,87.761,4.0686331]
[1773596121214,4.01294066,87.801,87.761,4.0686331]
[1773596122821,4.01294066,87.801,87.733,35.86]
[1773596122822,3.69269657,87.815,87.771,3.688309]
[1773596123024,8.7704725,87.814,87.771,3.688309]
[1773596123222,3.69269657,87.814,87.771,3.688309]
[1773596123523,3.69269657,87.824,87.781,3.688309]
[1773596123724,8.76698473,87.823,87.791,3.688309]
[1773596123925,3.69269657,87.824,87.791,3.688309]
[1773596125028,10.244,87.833,87.791,3.688309]
[1773596125221,13.93669657,87.833,87.791,3.688309]
[1773596125417,3.69269657,87.832,87.791,3.688309]
[1773596128728,3.69269657,87.828,87.781,3.688309]
[1773596129622,3.69269657,87.826,87.781,3.688309]
[1773596139730,10.243,87.836,87.791,3.688309]
[1773596139925,3.69269657,87.835,87.791,3.688309]
[1773596141632,13.93669657,87.834,87.791,3.688309]
[1773596142035,3.69269657,87.833,87.791,3.688309]
[1773596143447,3.69269657,87.828,87.791,3.688309]
[1773596156045,10.243,87.837,87.791,3.688309]
[1773596156254,3.69193653,87.838,87.801,3.9705322]
[1773596156450,3.69193653,87.859,87.801,3.9705322]
[1773596156751,3.69193653,87.859,87.758,20.505]
[1773596156752,3.69193653,87.853,87.811,3.9705322]
[1773596168060,3.69193653,87.853,87.821,3.9705322]
[1773596168560,3.69193653,87.864,87.821,3.9705322]
[1773596189378,3.73204361,87.861,87.821,3.9705322]
[1773596194886,3.73204361,87.861,87.823,3.9084282]
[1773596195082,8.72590936,87.89,87.794,35.86]
[1773596195083,3.73204361,87.871,87.831,3.9084282]
[1773596197184,3.73204361,87.869,87.826,3.9084282]
[1773596197485,3.73204361,87.869,87.811,3.9084282]
[1773596198077,3.73204361,87.849,87.802,3.9084282]
[1773596198278,3.73204361,87.839,87.792,3.9084282]
[1773596198583,3.73204361,87.829,87.781,3.9084282]
[1773596198790,35.84,87.869,87.781,3.9084282]
[1773596198791,3.73204361,87.819,87.781,3.9084282]
[1773596198992,35.84,87.857,87.767,21.20882253]
[1773596198993,3.73204361,87.809,87.767,3.9084282]
[1773596201283,3.73204361,87.819,87.77,3.11067116]
[1773596201481,3.73204361,87.819,87.771,3.9084282]
[1773596204680,3.73204361,87.819,87.774,3.9084282]
[1773596232710,3.98022182,87.809,87.764,4.02412802]
[1773596233302,3.98022182,87.809,87.766,4.02412802]
[1773596234107,3.98022182,87.825,87.781,4.02412802]
[1773596236915,3.98022182,87.819,87.781,4.02412802]
[1773596244819,3.82841951,87.816,87.781,4.02412802]
[1773596245321,3.82841951,87.816,87.764,3.86099711]
[1773596246328,3.82841951,87.814,87.766,3.86099711]